bitfinex/quotes_BTCUSD_20240715
["timestamp","ask_amount","ask_price","bid_price","bid_amount"]
[1721013539735,0.00306353,62647.0,62646.0,0.009913]
[1721013539882,0.00306353,62647.0,62646.0,0.74001103]
[1721013540084,0.01670866,62648.0,62647.0,0.143662]
[1721013540288,0.01670866,62648.0,62647.0,0.43417804]
[1721013540614,0.01670866,62648.0,62647.0,0.73008699]
[1721013541168,0.01670866,62648.0,62647.0,0.73808699]
[1721013541388,1.0,62656.0,62655.0,0.43093]
[1721013541592,1.0,62656.0,62655.0,0.718217]
[1721013541912,1.0,62656.0,62655.0,0.72679595]
[1721013541913,0.99980788,62656.0,62655.0,0.72679595]
[1721013542116,0.99980788,62656.0,62655.0,1.11308295]
[1721013542871,0.99980788,62656.0,62655.0,1.17938295]
[1721013543068,0.01670866,62658.0,62657.0,0.718195]
[1721013543546,0.01670866,62658.0,62657.0,0.72726721]
[1721013544872,0.01670866,62658.0,62657.0,0.74126721]
[1721013546096,0.01753866,62658.0,62657.0,0.74126721]
[1721013548304,0.01753866,62658.0,62657.0,0.02307221]
[1721013548571,0.01753866,62658.0,62657.0,0.16671121]
[1721013549188,0.01753866,62658.0,62657.0,0.45398921]
[1721013553766,0.01753866,62658.0,62657.0,0.16671121]
[1721013554315,0.75989182,62658.0,62657.0,0.02307221]
[1721013554516,0.61651882,62658.0,62657.0,0.02307221]
[1721013554715,1.20101737,62658.0,62657.0,0.014]
[1721013554928,1.5360988,62658.0,62657.0,0.014]
[1721013555120,0.37039121,62658.0,62657.0,0.014]
[1721013555321,0.17345474,62658.0,62657.0,0.014]
[1721013555496,0.31709174,62658.0,62653.0,0.00319184]
[1721013555695,0.00995255,62657.0,62653.0,0.00319184]
[1721013555903,0.00306353,62656.0,62653.0,0.00319184]
[1721013556178,0.00995261,62655.0,62654.0,1.15191385]
[1721013556304,0.00083,62666.0,62665.0,0.529861]
[1721013556537,0.00083,62666.0,62665.0,1.369843]
[1721013556735,0.00083,62666.0,62665.0,1.524757]
[1721013557544,0.00083,62666.0,62665.0,1.538757]
[1721013565541,0.00083,62666.0,62665.0,1.54848138]
[1721013570654,0.00083,62666.0,62665.0,1.83572238]
[1721013571853,0.00083,62666.0,62665.0,1.83230517]
[1721013575988,0.00083,62666.0,62665.0,1.73530517]
[1721013576189,0.00083,62666.0,62665.0,1.83230517]
[1721013576585,0.00083,62666.0,62665.0,2.15145517]
[1721013580426,0.00083,62666.0,62665.0,2.24255517]
[1721013581594,0.00083,62666.0,62665.0,2.24222817]
[1721013583516,0.00083,62666.0,62665.0,1.95498717]
[1721013585615,0.00834,62678.0,62677.0,0.36075579]
[1721013585819,0.00834,62678.0,62677.0,1.55282079]
[1721013585965,0.00834,62678.0,62677.0,2.15895618]
[1721013586375,0.00834,62678.0,62677.0,2.27675567]
[1721013586581,0.00834,62682.0,62681.0,1.48451179]
[1721013586824,0.00834,62682.0,62681.0,2.36259128]
[1721013587027,0.00834,62682.0,62681.0,2.3712987]
[1721013587239,0.00522247,62682.0,62681.0,2.3712987]
[1721013587441,1.0,62707.0,62694.0,0.40730979]
[1721013587442,0.146,62705.0,62694.0,0.40730979]
[1721013587578,0.146,62705.0,62694.0,1.10452779]
[1721013587780,1.0,62707.0,62699.0,0.62288279]
[1721013588045,0.002,62709.0,62708.0,1.50820979]
[1721013588248,0.00833,62721.0,62720.0,0.143494]
[1721013588445,0.15343,62721.0,62720.0,0.31888]
[1721013588620,0.60836616,62721.0,62720.0,0.32742015]
[1721013588822,0.15343,62721.0,62720.0,0.32742015]
[1721013589093,0.15343,62721.0,62720.0,0.31888]
[1721013589304,0.15343,62721.0,62720.0,0.462374]
[1721013589480,0.15343,62721.0,62720.0,0.47083073]
[1721013589708,0.15343,62721.0,62720.0,0.32733673]
[1721013590244,0.15343,62721.0,62720.0,0.34133673]
[1721013590644,0.58865121,62721.0,62720.0,0.34133673]
[1721013590848,0.58865121,62721.0,62720.0,0.31888]
[1721013590849,0.583907,62721.0,62720.0,0.31888]
[1721013591064,0.15343,62721.0,62720.0,0.32388]
[1721013591267,0.60836616,62721.0,62720.0,0.32388]
[1721013591470,0.60836616,62721.0,62720.0,0.33233673]
[1721013591471,0.89535116,62721.0,62720.0,0.33233673]
[1721013591664,0.783907,62721.0,62720.0,0.31888]
[1721013591983,0.783907,62721.0,62720.0,0.32388]
[1721013592191,0.89535116,62721.0,62720.0,0.32388]
[1721013592390,1.18233616,62721.0,62720.0,0.32388]
[1721013592596,1.47706537,62721.0,62720.0,0.32388]
[1721013593182,1.47706537,62721.0,62720.0,0.31888]
[1721013593639,1.47706537,62721.0,62720.0,0.32288]
[1721013593993,1.47706537,62721.0,62720.0,0.31888]
[1721013594654,1.57706537,62721.0,62720.0,0.31888]
[1721013595875,1.47706537,62721.0,62720.0,0.31888]
[1721013596887,1.53706537,62721.0,62720.0,0.31888]
[1721013597090,1.47706537,62721.0,62720.0,0.31888]
[1721013597303,1.82405037,62721.0,62720.0,0.31888]
[1721013597480,1.82405037,62721.0,62696.0,0.4771]
[1721013597481,0.42468837,62697.0,62696.0,0.4771]
[1721013597681,0.452047,62697.0,62696.0,0.4771]
[1721013598029,0.003,62699.0,62696.0,0.4771]
[1721013598241,0.003,62699.0,62697.0,0.00318962]
[1721013598472,0.003,62699.0,62696.0,0.4771]
[1721013598473,0.2,62697.0,62696.0,0.4771]
[1721013598673,0.143547,62697.0,62696.0,0.4771]
[1721013598881,0.43538621,62697.0,62696.0,0.4771]
[1721013599424,0.143545,62698.0,62696.0,0.4771]
[1721013600211,0.003,62699.0,62696.0,0.4771]
[1721013600415,0.003,62699.0,62697.0,0.00318973]
[1721013600611,1.003,62702.0,62696.0,0.46828973]
[1721013600816,0.004,62699.0,62697.0,0.01218957]
[1721013601579,0.004,62699.0,62696.0,0.61183873]
[1721013601580,0.00280804,62699.0,62696.0,0.46828973]
[1721013601755,0.00380804,62699.0,62697.0,0.011]
[1721013602000,0.001,62699.0,62697.0,0.0141896]
[1721013602377,0.00280804,62699.0,62697.0,0.0031896]
[1721013602583,0.2,62697.0,62693.0,0.143555]
[1721013602782,0.2,62698.0,62693.0,0.143555]
[1721013602980,0.20280804,62699.0,62694.0,0.143554]
[1721013603143,0.2,62698.0,62694.0,0.143554]
[1721013603400,0.2,62698.0,62692.0,0.430672]
[1721013603604,0.00280804,62699.0,62694.0,0.143554]
[1721013603846,0.00380804,62699.0,62696.0,0.006]
[1721013604057,0.001,62699.0,62697.0,0.0031896]
[1721013604258,1.0,62702.0,62697.0,0.0031896]
[1721013604661,1.0,62702.0,62700.0,0.143539]
[1721013604869,1.0,62702.0,62700.0,0.142539]
[1721013605268,1.0,62702.0,62701.0,0.143538]
[1721013605785,1.001,62702.0,62701.0,0.143538]
[1721013606008,1.001,62702.0,62701.0,0.430614]
[1721013606575,1.001,62702.0,62701.0,0.89399817]
[1721013606774,1.001,62702.0,62701.0,1.87384213]
[1721013606775,0.001,62702.0,62701.0,1.87384213]
[1721013607003,0.856506,62718.0,62717.0,0.143501]
[1721013607314,0.856506,62718.0,62717.0,0.429504]
[1721013607739,0.856506,62718.0,62717.0,0.142501]
[1721013608249,0.856506,62718.0,62713.0,0.09525579]
[1721013608250,0.860506,62718.0,62713.0,0.143509]
[1721013608448,0.860506,62718.0,62710.0,0.143516]
[1721013608627,0.860506,62718.0,62709.0,0.09525579]
[1721013608628,0.856506,62718.0,62709.0,0.09525579]
[1721013608831,0.856506,62718.0,62712.0,0.287024]
[1721013609096,0.857506,62718.0,62717.0,0.506304]
[1721013609290,0.857506,62718.0,62717.0,0.793307]
[1721013609497,0.857506,62718.0,62717.0,1.08031]
[1721013609726,0.857506,62718.0,62717.0,1.15851]
[1721013610229,0.857506,62718.0,62717.0,1.25376579]
[1721013610440,0.857506,62718.0,62717.0,1.50545775]
[1721013610441,0.856506,62718.0,62717.0,1.50545775]
[1721013610634,0.00833,62721.0,62720.0,0.143494]
[1721013611055,0.00833,62721.0,62713.0,0.09719196]
[1721013611056,0.00833,62721.0,62715.0,0.143505]
[1721013611191,0.00833,62721.0,62720.0,0.430483]
[1721013611595,0.00833,62721.0,62720.0,0.717472]
[1721013611794,0.00833,62721.0,62720.0,0.430483]
[1721013611979,0.00833,62721.0,62720.0,0.143494]
[1721013612180,0.00833,62721.0,62713.0,0.09719196]
[1721013612381,0.00833,62721.0,62710.0,0.09525579]
[1721013612589,0.00833,62721.0,62706.0,0.00306353]
[1721013612590,0.31144416,62719.0,62711.0,0.143513]
[1721013612803,0.31144416,62717.0,62712.0,0.143512]
[1721013613105,0.00833,62721.0,62710.0,0.287033]
[1721013613328,0.00833,62721.0,62720.0,0.156494]
[1721013613528,0.00833,62721.0,62720.0,0.59017113]
[1721013614128,0.00833,62721.0,62720.0,0.00318813]
[1721013614332,0.00833,62721.0,62715.0,0.143505]
[1721013614544,0.00833,62721.0,62715.0,0.287012]
[1721013614719,0.00833,62721.0,62717.0,0.143501]
[1721013615070,0.31144416,62719.0,62714.0,0.143508]
[1721013615256,0.31144416,62717.0,62713.0,0.143509]
[1721013615459,0.31144416,62717.0,62712.0,0.143512]
[1721013615626,0.30827354,62719.0,62713.0,0.14657253]
[1721013616227,0.30827354,62719.0,62713.0,0.00306353]
[1721013616405,0.30827354,62719.0,62712.0,0.00306353]
[1721013616406,0.1435,62718.0,62712.0,0.00306353]
[1721013616606,0.1435,62718.0,62712.0,0.14657553]
[1721013616813,0.143504,62716.0,62715.0,0.013]
[1721013617016,1.03334579,62716.0,62715.0,0.013]
[1721013617219,0.45179554,62708.0,62707.0,0.00306353]
[1721013617449,0.143526,62706.0,62705.0,0.46828973]
[1721013617636,0.343526,62706.0,62705.0,0.46828973]
[1721013617843,0.45179954,62706.0,62705.0,0.46828973]
[1721013618241,0.73885254,62706.0,62705.0,0.46828973]
[1721013618450,0.74359675,62706.0,62705.0,0.46828973]
[1721013618662,1.03064975,62706.0,62705.0,0.46828973]
[1721013620796,1.03064975,62706.0,62705.0,0.47928973]
[1721013621185,1.03064975,62706.0,62705.0,0.46828973]
[1721013621588,1.03064975,62706.0,62705.0,0.47528973]
[1721013622516,1.03064975,62706.0,62705.0,0.007]
[1721013622720,1.52111079,62706.0,62705.0,0.007]
[1721013622897,1.64609249,62706.0,62705.0,0.007]
[1721013623103,1.58609249,62706.0,62705.0,0.007]
[1721013623303,1.29903949,62706.0,62705.0,0.007]
[1721013623511,1.27405779,62706.0,62705.0,0.007]
[1721013623684,0.55460758,62706.0,62701.0,0.0617]
[1721013623888,0.31108158,62707.0,62702.0,0.00318936]
[1721013624097,0.00280804,62705.0,62701.0,0.05988936]
[1721013624300,0.00280804,62705.0,62702.0,0.0019989]
[1721013625051,0.00280804,62705.0,62701.0,0.05988936]
[1721013625279,0.20280804,62705.0,62701.0,0.05988936]
[1721013625478,0.30827354,62703.0,62700.0,0.0784]
[1721013625907,0.2,62702.0,62700.0,0.0784]
[1721013626106,0.45461058,62705.0,62702.0,0.006]
[1721013626436,0.00280804,62705.0,62702.0,0.006]
[1721013626629,0.00280804,62705.0,62702.0,0.00199898]
[1721013627065,0.00280804,62705.0,62703.0,0.00306353]
[1721013627487,0.00280804,62705.0,62702.0,0.06859898]
[1721013627861,0.00280804,62705.0,62702.0,0.07959898]
[1721013628666,0.30827354,62703.0,62702.0,0.011]
[1721013628935,0.45180654,62703.0,62702.0,0.011]
[1721013629408,1.03068475,62703.0,62702.0,0.011]
[1721013629668,1.09408475,62703.0,62702.0,0.011]
[1721013629901,0.287075,62702.0,62697.0,0.00291265]
[1721013630163,0.14354,62700.0,62697.0,0.00291265]
[1721013630339,0.14354,62700.0,62697.0,0.000913]
[1721013630971,0.14354,62700.0,62697.0,0.014913]
[1721013631172,0.143538,62701.0,62697.0,0.014913]
[1721013631663,0.143538,62701.0,62698.0,0.00946071]
[1721013631992,0.143538,62701.0,62697.0,0.01691281]
[1721013632211,0.00280804,62705.0,62701.0,0.143536]
[1721013632437,0.01670866,62706.0,62703.0,0.143533]
[1721013632661,0.01670866,62706.0,62704.0,0.00506198]
[1721013632867,0.01670866,62706.0,62704.0,0.01454264]
[1721013633068,0.01670866,62706.0,62704.0,0.00506198]
[1721013633268,0.01670866,62706.0,62705.0,0.00948011]
[1721013633604,0.01670866,62706.0,62705.0,0.44006711]
[1721013633743,0.01670866,62706.0,62705.0,0.87082511]
[1721013637388,1.0,62712.0,62705.0,0.87082511]
[1721013637389,1.0,62712.0,62706.0,0.287052]
[1721013637655,1.0,62712.0,62708.0,0.143521]
[1721013637855,1.0,62712.0,62709.0,0.00506144]
[1721013638005,1.0,62712.0,62710.0,0.0094774]
[1721013638216,1.0,62712.0,62711.0,0.00306353]
[1721013638412,1.0,62712.0,62711.0,0.01254039]
[1721013638636,1.0,62712.0,62711.0,0.00947686]
[1721013638637,1.45178654,62712.0,62711.0,0.00947686]
[1721013638840,1.45178654,62712.0,62709.0,0.00306353]
[1721013638841,1.30827354,62712.0,62709.0,0.00306353]
[1721013638995,0.30827354,62708.0,62707.0,0.00306353]
[1721013640162,1.00280804,62712.0,62707.0,0.00306353]
[1721013640411,1.0,62712.0,62708.0,0.14551892]
[1721013640562,1.0,62712.0,62709.0,0.00306353]
[1721013640978,1.0,62712.0,62711.0,0.717575]
[1721013641177,1.0,62712.0,62711.0,0.779475]
[1721013641380,1.0,62712.0,62711.0,0.855575]
[1721013641578,1.0,62712.0,62711.0,0.568545]
[1721013641760,1.0,62712.0,62711.0,0.57796683]
[1721013641973,1.0,62712.0,62711.0,0.58103036]
[1721013643833,1.0,62712.0,62711.0,0.59303036]
[1721013644304,1.0,62712.0,62711.0,0.88006036]
[1721013644520,1.0,62712.0,62711.0,0.58996683]
[1721013644947,1.0,62712.0,62711.0,0.59303036]
[1721013646305,1.0,62712.0,62711.0,0.30600036]
[1721013646540,1.0,62712.0,62711.0,0.59303036]
[1721013646736,1.0,62712.0,62711.0,0.58996683]
[1721013647065,1.0,62712.0,62711.0,0.30293683]
[1721013648875,1.0,62712.0,62711.0,0.87699683]
[1721013652721,0.01670866,62716.0,62715.0,0.430518]
[1721013652847,0.00083,62717.0,62715.0,0.287012]
[1721013653059,0.00083,62717.0,62716.0,1.42034328]
[1721013653294,0.00083,62717.0,62716.0,1.42972976]
[1721013654459,0.00083,62717.0,62716.0,1.4277338]
[1721013654683,0.00083,62717.0,62716.0,0.96916227]
[1721013655134,0.00083,62717.0,62716.0,0.98316227]
[1721013656455,0.00083,62717.0,62716.0,0.87390648]
[1721013657464,0.00083,62717.0,62716.0,0.88790648]
[1721013657947,0.00083,62717.0,62716.0,0.87390648]
[1721013658254,0.00083,62717.0,62716.0,0.88790648]
[1721013660521,0.00083,62717.0,62716.0,1.27017027]
[1721013660935,0.00083,62717.0,62716.0,2.07327023]
[1721013661134,0.00833,62721.0,62720.0,1.50680875]
[1721013661339,0.01033,62729.0,62728.0,1.07832975]
[1721013661563,0.01033,62729.0,62728.0,1.89768813]
[1721013661740,0.01033,62729.0,62728.0,1.907033]
[1721013663036,0.00833,62745.0,62744.0,0.19244775]
[1721013663238,0.00833,62745.0,62744.0,1.24134775]
[1721013663383,0.00833,62745.0,62744.0,1.5374973]
[1721013663590,0.00833,62745.0,62744.0,1.5144973]
[1721013664001,0.00833,62745.0,62744.0,1.8332473]
[1721013664902,0.00833,62745.0,62744.0,1.8472473]
[1721013665102,0.00833,62745.0,62744.0,2.1341273]
[1721013665306,0.00833,62745.0,62744.0,2.1571273]
[1721013665603,0.00833,62745.0,62744.0,2.2571273]
[1721013666190,0.00833,62762.0,62761.0,0.09719196]
[1721013666409,0.00834,62771.0,62770.0,0.59973775]
[1721013666614,0.002,62789.0,62779.0,0.98055579]
[1721013666890,0.0779,62787.0,62779.0,0.46194]
[1721013667097,0.00480804,62789.0,62779.0,1.02152232]
[1721013667302,0.002,62789.0,62779.0,1.88168232]
[1721013667515,0.002,62789.0,62788.0,0.98045079]
[1721013667712,0.002,62789.0,62788.0,1.26712879]
[1721013667920,0.002,62789.0,62788.0,1.27618289]
[1721013668292,0.002,62789.0,62788.0,1.59471289]
[1721013668523,0.002,62789.0,62788.0,1.13953489]
[1721013669279,0.002,62789.0,62788.0,1.15353489]
[1721013669459,0.002,62789.0,62788.0,1.32203489]
[1721013669885,0.002,62789.0,62788.0,1.60871289]
[1721013670155,0.002,62789.0,62788.0,1.32203489]
[1721013670704,0.002,62789.0,62788.0,1.65481289]
[1721013670978,0.002,62789.0,62788.0,1.66881289]
[1721013671335,0.002,62789.0,62788.0,1.65481289]
[1721013671769,0.002,62789.0,62788.0,1.76600485]
[1721013671972,0.002,62789.0,62788.0,1.78900485]
[1721013672145,0.002,62789.0,62788.0,1.86206485]
[1721013672319,0.002,62789.0,62788.0,2.14874285]
[1721013672527,0.00833,62792.0,62791.0,1.36427475]
[1721013672750,0.00833,62792.0,62791.0,1.70579475]
[1721013673033,0.00833,62792.0,62791.0,1.7146634]
[1721013673436,0.00833,62792.0,62791.0,1.6916634]
[1721013674117,0.00833,62792.0,62791.0,1.7146634]
[1721013674777,0.00833,62792.0,62791.0,2.0013284]
[1721013674975,0.00833,62792.0,62791.0,2.0761284]
[1721013675193,0.0125757,62793.0,62792.0,1.36732128]
[1721013675334,0.0125757,62793.0,62792.0,1.99549128]
[1721013675538,0.0125757,62793.0,62792.0,2.00127432]
[1721013676273,0.0125757,62793.0,62792.0,2.13997432]
[1721013676441,0.0125757,62793.0,62792.0,1.85331432]
[1721013676861,0.002,62809.0,62807.0,0.143295]
[1721013677038,0.002,62809.0,62804.0,0.286605]
[1721013677039,0.002,62809.0,62808.0,0.00883792]
[1721013677235,0.002,62809.0,62808.0,0.143293]
[1721013677495,0.002,62809.0,62808.0,0.72727754]
[1721013677734,0.002,62809.0,62808.0,0.1521209]
[1721013677954,0.002,62809.0,62808.0,0.72727754]
[1721013678627,0.002,62809.0,62808.0,0.7252949]
[1721013678987,0.002,62809.0,62808.0,0.1651209]
[1721013680482,0.002,62809.0,62808.0,0.0088279]
[1721013680683,0.002,62809.0,62808.0,0.014]
[1721013681367,0.002,62809.0,62801.0,0.286618]
[1721013681595,0.002,62809.0,62804.0,0.143302]
[1721013681764,0.002,62809.0,62805.0,0.143299]
[1721013681923,0.002,62809.0,62808.0,0.014]
[1721013682465,0.002,62809.0,62808.0,0.0228279]
[1721013683063,0.002,62809.0,62808.0,0.16810365]
[1721013683261,0.002,62809.0,62808.0,0.1661209]
[1721013683469,0.002,62809.0,62808.0,0.4527079]
[1721013683676,0.002,62809.0,62808.0,0.4387079]
[1721013684041,0.01868457,62809.0,62808.0,0.4387079]
[1721013684881,0.002,62809.0,62808.0,0.7392949]
[1721013685232,0.002,62809.0,62808.0,0.4527079]
[1721013688466,0.002,62809.0,62808.0,0.0228279]
[1721013688610,0.002,62809.0,62808.0,0.16810366]
[1721013689109,0.002,62809.0,62808.0,0.1661209]
[1721013689487,0.002,62809.0,62808.0,0.17048073]
[1721013689852,0.002,62809.0,62808.0,0.02718773]
[1721013690533,0.95299979,62809.0,62808.0,0.02718773]
[1721013690781,0.95299979,62809.0,62792.0,0.31851]
[1721013690782,1.17495775,62793.0,62792.0,0.31851]
[1721013690917,1.17495775,62793.0,62790.0,0.4863143]
[1721013690918,0.00474421,62791.0,62790.0,0.4863143]
[1721013691131,0.14808121,62789.0,62781.0,0.143353]
[1721013691357,0.74302875,62789.0,62778.0,1.25928973]
[1721013691656,1.08970275,62789.0,62779.0,0.00960472]
[1721013691900,1.37918479,62789.0,62779.0,0.00960472]
[1721013692054,1.37918479,62789.0,62767.0,0.46828973]
[1721013692055,0.69489921,62768.0,62767.0,0.46828973]
[1721013692255,0.69489921,62768.0,62756.0,0.7731383]
[1721013692256,0.203389,62767.0,62760.0,0.143402]
[1721013692461,0.00280804,62764.0,62760.0,0.143402]
[1721013693069,0.00280804,62764.0,62757.0,0.286819]
[1721013693297,0.45447658,62764.0,62757.0,0.143409]
[1721013693502,0.143396,62763.0,62757.0,0.143409]
[1721013693757,0.00280804,62764.0,62757.0,0.143409]
[1721013694068,0.14720304,62764.0,62760.0,0.014]
[1721013694265,0.143401,62761.0,62760.0,0.014]
[1721013694471,0.14814121,62763.0,62756.0,0.00973406]
[1721013694672,0.14814121,62763.0,62755.0,0.46828973]
[1721013694867,0.14814121,62763.0,62757.0,0.014]
[1721013696826,0.00474421,62763.0,62756.0,0.143411]
[1721013697221,0.00474421,62763.0,62756.0,0.147411]
[1721013697222,0.00574421,62763.0,62756.0,0.147411]
[1721013697428,0.00574421,62763.0,62757.0,0.14341]
[1721013697655,0.06944421,62768.0,62759.0,0.08105238]
[1721013697863,0.00474421,62768.0,62760.0,0.00198972]
[1721013697994,1.0,62771.0,62764.0,0.286788]
[1721013698195,1.0,62771.0,62766.0,0.143388]
[1721013698425,1.0,62771.0,62758.0,0.0647]
[1721013698426,0.20474421,62767.0,62760.0,0.143402]
[1721013698770,0.00474421,62767.0,62761.0,0.00505341]
[1721013699114,0.00474421,62767.0,62761.0,0.14845441]
[1721013699321,0.00474421,62767.0,62761.0,0.143401]
[1721013700149,1.0,62771.0,62753.0,0.37151805]
[1721013700150,0.2,62765.0,62753.0,0.37151805]
[1721013700358,0.2,62761.0,62753.0,0.28951905]
[1721013700571,0.21154421,62762.0,62755.0,0.143413]
[1721013700773,0.06814421,62762.0,62756.0,0.143412]
[1721013700937,0.286778,62767.0,62751.0,0.09719196]
[1721013700938,0.00755225,62770.0,62758.0,0.08105238]
[1721013701131,0.10827354,62775.0,62770.0,0.14338]
[1721013701132,1.00280804,62771.0,62770.0,0.14338]
[1721013701729,1.0,62771.0,62770.0,0.14338]
[1721013701929,1.00280804,62771.0,62766.0,0.143388]
[1721013702078,1.00280804,62771.0,62770.0,0.00981148]
[1721013702282,1.00280804,62771.0,62763.0,0.286791]
[1721013702283,0.30827354,62770.0,62766.0,0.143387]
[1721013702478,0.30827354,62767.0,62766.0,0.143387]
[1721013703061,1.01669287,62771.0,62769.0,0.14338]
[1721013703231,1.01669287,62771.0,62766.0,0.0019892]
[1721013703433,1.01669287,62771.0,62770.0,0.14338]
[1721013703636,1.01669287,62771.0,62768.0,0.286769]
[1721013703788,1.01669287,62771.0,62761.0,0.00306353]
[1721013704007,1.01669287,62771.0,62768.0,0.143383]
[1721013704192,1.01669287,62771.0,62765.0,0.286783]
[1721013704401,1.01669287,62771.0,62768.0,0.143384]
[1721013704600,1.01669287,62771.0,62766.0,0.00306353]
[1721013704802,1.01669287,62771.0,62768.0,0.286769]
[1721013705009,1.01669287,62771.0,62769.0,0.14644453]
[1721013705205,1.01669287,62771.0,62770.0,0.14338]
[1721013705407,1.01669287,62771.0,62769.0,0.14644353]
[1721013706237,1.01669287,62771.0,62770.0,0.14338]
[1721013707532,1.32496641,62771.0,62766.0,0.143387]
[1721013707739,1.32496641,62771.0,62767.0,0.00306353]
[1721013707740,0.30827354,62770.0,62767.0,0.00306353]
[1721013708019,1.01669287,62771.0,62768.0,0.143383]
[1721013708221,1.01669287,62771.0,62769.0,0.00306353]
[1721013709206,1.01669287,62771.0,62770.0,1.003663]
[1721013709380,1.01669287,62771.0,62770.0,1.09891879]
[1721013709381,0.01669287,62771.0,62770.0,1.09891879]
[1721013709583,1e-08,62771.0,62770.0,1.09891879]
[1721013710833,1e-08,62771.0,62770.0,1.10198232]
[1721013711184,1e-08,62771.0,62770.0,1.003663]
[1721013711778,1e-08,62771.0,62770.0,1.09891879]
[1721013712670,1e-08,62771.0,62770.0,1.003663]
[1721013714232,1e-08,62771.0,62770.0,1.09891879]
[1721013714715,0.00736057,62784.0,62778.0,0.143361]
[1721013714936,1.30827354,62787.0,62765.0,0.00957792]
[1721013714937,0.06484421,62770.0,62765.0,0.00957792]
[1721013715135,0.06484421,62770.0,62766.0,0.00306353]
[1721013715136,0.00474421,62767.0,62766.0,0.00306353]
[1721013715801,0.00261636,62769.0,62768.0,0.143385]
[1721013716248,0.00261636,62769.0,62768.0,0.00817776]
[1721013716398,0.74578111,62769.0,62768.0,0.00817776]
[1721013716800,0.00474421,62764.0,62760.0,0.01364513]
[1721013717000,0.5976549,62769.0,62760.0,0.30243931]
[1721013717001,0.14813121,62768.0,62760.0,0.30243931]
[1721013717179,0.14813121,62768.0,62761.0,0.00818408]
[1721013717180,0.00474421,62768.0,62761.0,0.00818408]
[1721013717381,0.00474421,62768.0,62763.0,0.286791]
[1721013717579,0.00261636,62769.0,62764.0,0.14538151]
[1721013717781,0.00261636,62769.0,62764.0,0.01017088]
[1721013718008,0.00261636,62769.0,62766.0,0.143388]
[1721013718207,0.00261636,62769.0,62766.0,0.00198939]
[1721013718434,0.00261636,62769.0,62768.0,0.143385]
[1721013718784,0.00261636,62769.0,62768.0,0.15156276]
[1721013718980,0.00261636,62770.0,62769.0,0.143382]
[1721013719236,0.00261636,62770.0,62768.0,0.00817776]
[1721013719237,0.00736057,62770.0,62768.0,0.00817776]
[1721013719443,0.00736057,62770.0,62769.0,0.00817686]
[1721013719653,0.00736057,62770.0,62766.0,0.14537839]
[1721013719829,0.00261636,62769.0,62768.0,0.143385]
[1721013720189,0.00261636,62769.0,62768.0,0.15156276]
[1721013720480,0.346698,62784.0,62772.0,0.143376]
[1721013720481,0.00261636,62773.0,62772.0,0.143376]
[1721013720669,0.00261636,62773.0,62772.0,0.430128]
[1721013720877,0.00474421,62778.0,62773.0,0.143372]
[1721013720878,0.00261636,62774.0,62773.0,0.143372]
[1721013721089,0.00261636,62774.0,62773.0,0.14536017]
[1721013721296,0.00261636,62774.0,62773.0,0.15353342]
[1721013721428,0.00474421,62778.0,62774.0,0.143369]
[1721013721630,1.0,62780.0,62776.0,0.143366]
[1721013721839,1.0,62780.0,62779.0,0.43008]
[1721013722035,1.0,62780.0,62779.0,0.43824784]
[1721013722232,1.0,62780.0,62779.0,0.72496784]
[1721013724466,0.00819057,62788.0,62783.0,0.143348]
[1721013724691,0.00557421,62788.0,62784.0,0.00816333]
[1721013724866,0.26,62787.0,62784.0,0.00816333]
[1721013725086,0.74305575,62785.0,62784.0,0.00816333]
[1721013725296,0.74305575,62785.0,62774.0,0.14337]
[1721013725297,0.45163154,62780.0,62774.0,0.14337]
[1721013725496,0.223958,62780.0,62775.0,0.00817724]
[1721013725841,0.00474421,62782.0,62777.0,0.143364]
[1721013726152,0.00474421,62782.0,62778.0,0.00817454]
[1721013726576,0.00474421,62782.0,62775.0,0.143369]
[1721013726577,0.30827354,62780.0,62775.0,0.143369]
[1721013726794,0.30827354,62780.0,62779.0,0.00859152]
[1721013727000,0.30827354,62781.0,62776.0,0.143365]
[1721013727198,0.00474421,62781.0,62779.0,0.00859152]
[1721013727419,0.00474421,62781.0,62776.0,0.14535251]
[1721013727633,0.00474421,62787.0,62781.0,0.0642]
[1721013727795,0.00474421,62787.0,62784.0,0.143348]
[1721013728175,0.00474421,62787.0,62785.0,0.00860461]
[1721013728296,0.45636175,62786.0,62785.0,0.00860461]
[1721013728504,0.31301775,62785.0,62779.0,0.143359]
[1721013729173,0.45636375,62785.0,62779.0,0.143359]
[1721013729468,0.26,62783.0,62779.0,0.143359]
[1721013729637,0.00083,62788.0,62780.0,0.0611]
[1721013729838,0.00474421,62785.0,62780.0,0.143356]
[1721013730036,0.30827354,62783.0,62778.0,0.143361]
[1721013730242,0.30827354,62776.0,62772.0,0.00947615]
[1721013730497,0.30827354,62776.0,62770.0,0.143379]
[1721013730665,0.00474421,62777.0,62772.0,0.143375]
[1721013731871,0.30827354,62776.0,62772.0,0.143375]
[1721013732168,0.30827354,62776.0,62773.0,0.00719531]
[1721013732571,0.31301775,62777.0,62773.0,0.00719531]
[1721013732770,0.00474421,62777.0,62773.0,0.00719531]
[1721013734505,0.0601,62780.0,62773.0,0.00719531]
[1721013734687,0.00474421,62780.0,62776.0,0.143365]
[1721013735204,0.00474421,62780.0,62777.0,0.00721085]
[1721013735628,0.143353,62782.0,62777.0,0.00721085]
[1721013736036,0.00474421,62780.0,62777.0,0.00721085]
[1721013736403,0.143353,62782.0,62777.0,0.00721085]
[1721013736674,0.21389421,62784.0,62777.0,0.15057485]
[1721013736818,0.30827354,62783.0,62777.0,0.15057485]
[1721013737023,0.52216775,62784.0,62777.0,0.15057485]
[1721013737226,0.00474421,62784.0,62778.0,0.00198766]
[1721013737424,0.00261636,62785.0,62781.0,0.143353]
[1721013737425,0.00736057,62785.0,62781.0,0.143353]
[1721013737627,0.00736057,62785.0,62782.0,0.00720634]
[1721013738709,0.00736057,62785.0,62782.0,0.15055934]
[1721013739019,0.00736057,62785.0,62782.0,0.00720634]
[1721013739221,0.144171,62788.0,62787.0,0.143341]
[1721013739222,0.00083,62788.0,62787.0,0.143341]